Cogmind - Beta 12 @@@ ROGUE MODE // 2023.11.24 @ 20:27:42 Player: Rainynight Result: Destroyed by D-53 Grenadier with Mini Grenade Launcher Performance ------------- Evolutions (1) 500 Regions Visited (4) 800 Robots Destroyed (66) 330 Value Destroyed (1395) 1395 Prototype IDs (3) 60 Alien Tech Used (0) 0 Bonus (38) 38 TOTAL SCORE: 3123 Bonus ------- High Alert Combat Kills 38 Cogmind --------- Core Integrity 0/400 Matter 275/300 Energy 261/265 System Corruption 0% Temperature Cool (47) Movement Walking (260) Ox2 Location -9/Mines Parts ------- > --- POWER (1) -------- Reinforced Ion Engine > --- PROPULSION (3) --- Aluminum Leg > --- UTILITY (3) ------ Medium Storage Unit Improved Targeting Computer Light Armor Plating > --- WEAPON (2) ------- Heavy EM Pulse Gun Heavy EM Pulse Gun > --- INVENTORY (10) --- Heat Sink Light Armor Plating Improved EM Shotgun Grenade Launcher Grenade Launcher Heavy Hammer Peak State ------------ > --- POWER ------------ Reinforced Ion Engine > --- PROPULSION ------- Aluminum Leg Aluminum Leg Aluminum Leg > --- UTILITY ---------- Medium Storage Unit Improved Targeting Computer Light Armor Plating > --- WEAPON ----------- Improved EM Shotgun Improved EM Shotgun > --- INVENTORY -------- Light Ion Engine Heat Sink Light Armor Plating Light Armor Plating Heavy EM Pulse Gun Heavy EM Pulse Gun Grenade Launcher Grenade Launcher [Rating: 16] Favorites ----------- Power Ion Engine Engine Ion Engine Propulsion Aluminum Leg Leg Aluminum Leg Utility Medium Storage Unit Device Heat Sink Storage Medium Storage Unit Processor Improved Targeting Computer Protection Light Armor Plating Weapon Improved EM Shotgun Energy Gun Improved EM Shotgun Ballistic Gun Light Assault Rifle Launcher Grenade Launcher Build | -11 -10 -10 -9 -9 ------- Run | Jun Mat Min Mat Min Slots Evolved 2 | . . . 2 . Power . | . . . . . Propulsion 1 | . . . 1 . Utility 1 | . . . 1 . Weapon . | . . . . . Parts Attached 54 | . 19 . 31 4 Power 7 | . 2 . 5 . Engine 7 | . 2 . 5 . Core . | . . . . . Reactor . | . . . . . Propulsion 15 | . 5 . 9 1 Treads . | . . . . . Leg 15 | . 5 . 9 1 Wheel . | . . . . . Hover . | . . . . . Flight . | . . . . . Utility 13 | . 5 . 7 1 Device 2 | . 1 . 1 . Storage 3 | . 3 . . . Processor 2 | . . . 2 . Hackware . | . . . . . Protection 6 | . 1 . 4 1 Artifact . | . . . . . Weapon 19 | . 7 . 10 2 Energy Gun 17 | . 6 . 9 2 Energy Cannon . | . . . . . Ballistic Gun 1 | . . . 1 . Ballistic Cannon . | . . . . . Launcher 1 | . 1 . . . Special Weapon . | . . . . . Impact Weapon . | . . . . . Slashing Weapon . | . . . . . Piercing Weapon . | . . . . . Special Melee Weapon . | . . . . . Unidentified Prototypes 3 | . 1 . 2 . Parts Lost 15 | . . . 10 5 Power 1 | . . . 1 . Propulsion 6 | . . . 4 2 Utility 2 | . . . 1 1 Weapon 6 | . . . 4 2 Highest Loss Streak 9 | . . . 9 5 To Critical Strikes . | . . . . . Average Slot Usage (%) 98 | . 98 100 97 94 Engine 12 | . 14 14 10 11 Leg 29 | . 28 28 31 27 Device 4 | . 9 . . . Storage 12 | . 14 14 11 11 Processor 5 | . . . 10 11 Protection 7 | . 3 14 10 11 Energy Gun 20 | . 19 28 21 22 Ballistic Gun 3 | . 8 . . . Naked Turns . | . . . . . Heaviest Build 29 | 11 27 24 29 29 Greatest Support 30 | 20 20 20 30 30 Greatest Overweight (x) 2 | . 1 1 2 1 Average Overweight (x) . | . . 1 . . Largest Inventory Capacity 15 | . 15 10 10 10 Average Capacity 9 | . 9 10 10 10 Most Carried 12 | . 12 10 10 10 Average Carried 9 | . 9 10 9 8 Final Capacity 10 | 8 10 10 10 10 Final Carried 10 | 6 10 10 10 6 Class Distribution -------------------- 77% | Mutant 22% | Scavenger-Mutant Dominant Class ---------------- Mutant | -10/Materials Mutant | -10/Mines Mutant | -9/Materials Scavenger-Mutant | -9/Mines Resources | -11 -10 -10 -9 -9 ----------- Run | Jun Mat Min Mat Min Matter Collected 818 | 200 337 . 281 . Remotely . | . . . . . Salvage Created 2364 | . 558 . 1711 95 Parts 155 | . 39 . 104 12 Haulers Intercepted 6 | . . . 6 . Recyclers Shooed . | . . . . . Parts Field Recycled . | . . . . . Retrieved Matter . | . . . . . Parts Self-Destructed . | . . . . . Prevented . | . . . . . Kills | -11 -10 -10 -9 -9 ------- Run | Jun Mat Min Mat Min Combat Hostiles Destroyed 51 | . 16 . 30 5 Guns 46 | . 14 . 27 5 AOE 4 | . 2 . 2 . Classes Destroyed 9 | . 4 . 4 1 Worker 3 | . 1 . 2 . Hauler 6 | . . . 6 . Recycler 2 | . . . 2 . Watcher 5 | . 2 . 3 . Swarmer 21 | . 6 . 11 4 Grunt 24 | . 10 . 14 . Brawler 1 | . . . 1 . Sentry 4 | . . . 4 . Assembled 1 | . . . . 1 Best Kill Streak 6 | . 4 . 6 4 Combat Bots Only 5 | . 4 . 5 4 Max Kills in Single Turn 2 | . 2 . 2 1 Gunslinging . | . . . . . Exploded 1 | . 1 . 1 . Melee . | . . . . . Uniques/NPCs Destroyed . | . . . . . Combat | -11 -10 -10 -9 -9 -------- Run | Jun Mat Min Mat Min Damage Taken 2504 | . 496 . 1401 607 Core 502 | . 90 . 232 180 Absorbed by Shields . | . . . . . Regen/Repaired (Parts) 60 | . 60 . . . Core Remaining (%) 82 | 100 . 64 . . Volleys Fired 148 | . 68 . 72 8 Largest 2 | . 2 . 2 2 Hottest 101 | . 100 . 101 90 Shots Fired 292 | . 134 . 142 16 Gun 290 | . 132 . 142 16 Cannon . | . . . . . Launcher 2 | . 2 . . . Special . | . . . . . Kinetic 68 | . 68 . . . Thermal 35 | . 34 . 1 . Explosive 2 | . 2 . . . Electromagnetic 187 | . 30 . 141 16 Robot Hit Streak 20 | . 14 . 20 5 Robot Miss Streak 7 | . 4 . 7 5 Penetration Max . | . . . . . Secondary Targets 9 | . 2 . 5 2 Max Gunslinging Chain 1 | . 1 . 1 1 Shots Hit Robots 197 | . 87 . 100 10 Core Hits 114 | . 38 . 67 9 Critical Kills . | . . . . . Critical Parts Destroyed . | . . . . . Critical Strikes 2 | . 1 . 1 . Burn 1 | . 1 . . . Corrupt 1 | . . . 1 . Melee Attacks . | . . . . . Impact . | . . . . . Slashing . | . . . . . Piercing . | . . . . . Sneak Attacks . | . . . . . Combat Hostiles . | . . . . . Follow-up Attacks . | . . . . . Damage Inflicted 3361 | . 1267 . 1922 172 Guns 3050 | . 1128 . 1750 172 Cannons . | . . . . . Explosions 284 | . 121 . 163 . Melee . | . . . . . Ramming 27 | . 18 . 9 . Kinetic 489 | . 489 . . . Thermal 477 | . 296 . 181 . Explosive 121 | . 121 . . . Electromagnetic 2247 | . 343 . 1732 172 Impact . | . . . . . Slashing . | . . . . . Piercing . | . . . . . Highest Corruption . | . . . . . Average Corruption . | . . . . . Corruption Purged . | . . . . . Corruption Blocked . | . . . . . Overload Shots . | . . . . . Overflow Damage 1 | . 1 . . . Projectiles . | . . . . . Explosions 1 | . 1 . . . Melee . | . . . . . Knockbacks . | . . . . . Impact . | . . . . . Kinetic . | . . . . . Secondary . | . . . . . Self-Inflicted Damage 78 | . . . 78 . Shots 2 | . . . 2 . Rammed . | . . . . . Targets Rammed 9 | . 5 . 4 . Kicked 9 | . 5 . 4 . Crushed . | . . . . . Highest Temperature 330 | . 219 . 330 186 Average Temperature 72 | . 49 . 78 89 Received Heat Transfer 632 | . 177 . 315 140 Effects 3 | . 2 . 1 . Energy Bleed 1 | . . . 1 . Interference 2 | . 2 . . . Siege Activations . | . . . . . Robots Corrupted 1 | . . . 1 . Combat Hostiles 1 | . . . 1 . Parts Fried 8 | . 3 . 5 . Impact Corruptions . | . . . . . Robots Melted . | . . . . . Combat Hostiles . | . . . . . Parts Melted . | . . . . . Heat Transferred 1212 | . 925 . 287 . Parts Sabotaged . | . . . . . Parts Stolen . | . . . . . Parts Stripped . | . . . . . Power Chain Reactions 7 | . . . 6 1 Missiles Intercepted . | . . . . . Alert | -11 -10 -10 -9 -9 ------- Run | Jun Mat Min Mat Min Peak Influence 519 | . 184 60 519 253 Initial 158 | . . 60 23 158 Average 172 | . 75 60 267 235 Maximum Alert Level 2 | . . . 2 1 Low Security (%) 64 | . 100 100 32 9 Level 1 23 | . . . 43 90 Level 2 11 | . . . 23 . Level 3 . | . . . . . Level 4 . | . . . . . Level 5 . | . . . . . High Security . | . . . . . Max Security . | . . . . . Squads Dispatched 9 | . 3 . 6 . Investigation 5 | . 2 . 3 . Extermination . | . . . . . Reinforcement 4 | . 1 . 3 . Assault . | . . . . . Garrison . | . . . . . Intercept . | . . . . . Searches Triggered . | . . . . . Construction Impeded . | . . . . . Haulers Reinforced . | . . . . . Active Scanning Responses . | . . . . . Cargo Convoy Interrupts . | . . . . . Stealth | -11 -10 -10 -9 -9 --------- Run | Jun Mat Min Mat Min Distress Signals 4 | . . . 4 . Communications Jammed . | . . . . . Distress Signals . | . . . . . Times Spotted 82 | . 23 . 44 15 Peak Tracking Total 8 | . 4 . 7 8 Tactical Retreats 8 | . 2 . 6 . Traps | -11 -10 -10 -9 -9 ------- Run | Jun Mat Min Mat Min Traps Triggered 1 | . . . 1 . Indirectly . | . . . . . Trap Hack Attempts . | . . . . . Triggered . | . . . . . Disarmed . | . . . . . Reprogrammed . | . . . . . Reused . | . . . . . Traps Extracted . | . . . . . Installed . | . . . . . Triggered . | . . . . . Machines | -11 -10 -10 -9 -9 ---------- Run | Jun Mat Min Mat Min Machines Disabled 3 | . 1 . 2 . Max in Single Turn 1 | . 1 . 1 . Machines Repaired . | . . . . . Machines Sabotaged . | . . . . . Overloaded Fab Kills . | . . . . . Hacking | -11 -10 -10 -9 -9 --------- Run | Jun Mat Min Mat Min Machines Accessed 18 | . 8 . 10 . Terminals 10 | . 5 . 5 . Fabricators . | . . . . . Repair Stations 2 | . 1 . 1 . Recycling Units 4 | . 2 . 2 . Scanalyzers 2 | . . . 2 . Garrison Access . | . . . . . Total Hacks 47 | . 21 . 26 . Successful 26 | . 15 . 11 . Failed 21 | . 6 . 15 . Catastrophic 4 | . 1 . 3 . Database Lockouts . | . . . . . Manual 23 | . 12 . 11 . Terminals 31 | . 16 . 15 . Fabricators . | . . . . . Repair Stations 5 | . 3 . 2 . Recycling Units 5 | . 2 . 3 . Scanalyzers 6 | . . . 6 . Garrison Access . | . . . . . Terminal Hacks 12 | . 9 . 3 . Robot Analysis 4 | . 4 . . . Unreport Threat 3 | . 1 . 2 . Locate Traps 3 | . 2 . 1 . Zone Layout 2 | . 2 . . . Fabricator Hacks . | . . . . . Repair Station Hacks 2 | . 2 . . . Scan Component 1 | . 1 . . . Repair 1 | . 1 . . . Recycling Unit Hacks 1 | . . . 1 . Retrieve Components 1 | . . . 1 . Scanalyzer 2 | . . . 2 . Insert Component 1 | . . . 1 . Analyze 1 | . . . 1 . Garrison Access Hacks . | . . . . . Unauthorized Hacks 9 | . 4 . 5 . Terminals 5 | . 2 . 3 . Track 5 | . 2 . 3 . Fabricators . | . . . . . Repair Stations . | . . . . . Recycling Units 4 | . 2 . 2 . Tunnel 4 | . 2 . 2 . Scanalyzers . | . . . . . Garrison Access . | . . . . . Data Cores Recovered . | . . . . . Used . | . . . . . Hacking Detections 14 | . 6 . 8 . Full Trace Events 1 | . . . 1 . Feedback Events . | . . . . . Feedback Blocked . | . . . . . Robot Schematics Acquired . | . . . . . Robots Built . | . . . . . Authchips . | . . . . . Time . | . . . . . Total Robot Build Rating . | . . . . . Part Schematics Acquired 1 | . . . 1 . Parts Built . | . . . . . Authchips . | . . . . . Time . | . . . . . Total Part Build Rating . | . . . . . Parts Repaired 1 | . 1 . . . Time 26 | . 26 . . . Parts Recycled . | . . . . . Recycled Matter . | . . . . . Retrieved Matter . | . . . . . Retrieved Components 10 | . . . 10 . Parts Scanalyzed 1 | . . . 1 . Part Schematics Acquired 1 | . . . 1 . Parts Damaged . | . . . . . Bothacking | -11 -10 -10 -9 -9 ------------ Run | Jun Mat Min Mat Min Used RIF Installer . | . . . . . Robots Hacked . | . . . . . Non-combat . | . . . . . Combat . | . . . . . Robot Hacks Applied . | . . . . . Relay Couplers Released . | . . . . . Fabnet Peak Effective % . | . . . . . Robots Rewired . | . . . . . Allies Hacked . | . . . . . Hacks Repelled . | . . . . . Allies | -11 -10 -10 -9 -9 -------- Run | Jun Mat Min Mat Min Total Allies . | . . . . . Largest Group . | . . . . . Highest-Rated Group . | . . . . . Highest-Rated Ally . | . . . . . Total Orders . | . . . . . Ally Attacks . | . . . . . Total Damage . | . . . . . Kills . | . . . . . Allies Corrupted . | . . . . . Allies Melted . | . . . . . Intel | -11 -10 -10 -9 -9 ------- Run | Jun Mat Min Mat Min Robot Analysis Total 4 | . 4 . . . Derelict Logs Recovered 1 | . . . . 1 Drone Launches . | . . . . . Drone Recoveries . | . . . . . Exploration | -11 -10 -10 -9 -9 ------------- Run | Jun Mat Min Mat Min Turns Passed 2643 | . 1193 99 1288 63 Spaces Moved 1417 | 1 593 53 745 25 Core . | . . . . . Treads . | . . . . . Legs 1417 | 1 593 53 745 25 Wheels . | . . . . . Hover . | . . . . . Flight . | . . . . . Fastest Speed 120 | 120 120 190 120 120 Average Speed 135 | 120 146 190 123 139 Slowest Speed 260 | 120 190 190 260 190 Overloaded Moves . | . . . . . Propulsion Burnouts . | . . . . . Robots Hopped . | . . . . . Cave-ins Triggered . | . . . . . Exploration Rate (%) 35 | 2 84 13 63 14 Regions Visited 4 Branch Regions 2 Pre-discovered Areas 4 | . 2 . 2 . Known Exits Taken . | . . . . . Unknown Exits Taken 4 | 1 1 1 1 . Scrap Searched 1 | . . 1 . . Spaces Dug . | . . . . . Terrain Destroyed 40 | . 13 . 22 5 Melee . | . . . . . Projectile . | . . . . . AOE 40 | . 13 . 22 5 Terrain Rammed . | . . . . . Walls Destroyed . | . . . . . Machines Disabled . | . . . . . Actions | -11 -10 -10 -9 -9 --------- Run | Jun Mat Min Mat Min Total 1859 | . 798 52 972 37 Wait 147 | . 57 . 90 . Move 1413 | . 592 52 744 25 Hop . | . . . . . Pick Up 38 | . 28 . 10 . Fast Attach 22 | . 8 . 14 . Attach 11 | . 1 . 6 4 Detach 1 | . . . 1 . Swap 21 | . 10 . 11 . Drop 49 | . 29 . 20 . Fire 148 | . 68 . 72 8 Melee . | . . . . . Ram . | . . . . . Kick 9 | . 5 . 4 . Crush . | . . . . . Escape Stasis . | . . . . . Rewire . | . . . . . Trap . | . . . . . Miscellaneous . | . . . . . Route ------- -11/Junkyard -10/Materials (discovered 3 exits: *Mat x2 / [*Min]) -10/Mines -9/Materials (discovered 3 exits: [*Mat] / [*Min x2]) -9/Mines History --------- Turn | Location | Event 1 | -11/Junkyard | Discovered new exit (range 0) 1 | -11/Junkyard | Entered Materials 267 | -10/Materials | Discovered new exit (range 12) 302 | -10/Materials | Build established: Mutant 487 | -10/Materials | Repaired Aluminum Leg? 703 | -10/Materials | Discovered new exit (range 7) 976 | -10/Materials | Discovered new exit (range 6) 1194 | -10/Materials | Entered Mines 1195 | -10/Mines | Met a Derelict bent on vengeance 1242 | -10/Mines | Discovered new exit (range 5) 1293 | -10/Mines | Entered Materials 1293 | -9/Materials | Evolved 2 slots: Propulsion x1, Utility x1 1379 | -9/Materials | Discovered new exit (range 13) 1559 | -9/Materials | Discovered new exit (range 13) 1959 | -9/Materials | Lost 9 parts (1p4n1u3w) 2236 | -9/Materials | Core integrity fell below 50% 2426 | -9/Materials | Discovered new exit (range 9) 2461 | -9/Materials | Build established: Scavenger-Mutant 2581 | -9/Materials | Entered Mines 2606 | -9/Mines | Assembled infested the area 2621 | -9/Mines | Core integrity fell below 20% 2634 | -9/Mines | Learned Materials security intel 2644 | -9/Mines | Destroyed by D-53 Grenadier with Mini Grenade Launcher Last Messages --------------- squad. 02618_ Aluminum Leg severed. 02621_ as-32028 destroyed. 02622_ Aluminum Leg destroyed. 02623_ Imp. EM Shotgun destroyed. 02626_ Lgt. Armor Plating destroyed. 02628_ C-30 ARC bursts open, deploying its payload. 02628_ D-53 Grenadier unfolds itself. 02628_ as-83131 destroyed. 02628_ as-63826 destroyed. 02631_ as-99711 destroyed. 02632_ as-12571 destroyed. 02633_ as-50139 destroyed. 02633_ as-14404 destroyed. 02634_ Acquired derelict log, extracted data. Data stored: Materials security intel. 02638_ as-93463 destroyed. 02641_ T-07 Excavator destroyed. 02641_ Aluminum Leg destroyed. 02644_ The unstable cave ceiling collapses. Map ----- +----------------------------------------------------+ | ??????????????????? #???????????????????????????? | | ??????????????????? ###????????????????????????? | | ??????????????????? ##???????????????????????? | | ??????????????????? #???????????????????????? | | ???????????????????? ????????????????????????? | | ???????????????????? ????????????????????????? | | ???????????????????? ?????????????????????????? | | ????????????????????# #?????????????????????????? | | ????????????????????# #?????????????????????????? | | ??????????????????### ##??????##????????????????? | | ??????????????????# #????? ##???????????????? | | ??????????????????# =#???? #???????????????? | | ??????????????????# =*%#??? #???????????????? | | ??????????????????# =*%*##? #???????????????? | | ??????????????????# ==[%### #????????????????? | | ??????????????????# %=[ ## #?????????????????? | | ?????????#????######## #??????????????????? | | ????????## #### ##### ##??????????????????? | | ????????# " ##???????????????????? | | ????????# a% ###????????????????????? | | ???????????### #####??????????????????????? | | ?????????????## ###????????????????????? | | ?????????????## #????????????????????? | | ?????????????# dd #????????????????????? | | ?????????????# ##???????????????????? | | ?????????????# @ #???????????????????? | | ?????????????# $#?????????????????? | | ????????????# # #?????????????????? | | ????????????# # # ##???????????????????? | | ????????????# # # ###### #????????????????????? | | ??????????? ??????? #????????????????????? | | ????????????# #???????##????????????????????? | | ????????????## ???????????????????????????????? | | ?????????????####????????????????????????????????? | | ?????????????????????????????????????????????????? | | ?????????????????????????????????????????????????? | | ?????????????????????????????????????????????????? | | ?????????????????????????????????????????????????? | | ?????????????????????????????????????????????????? | | ?????????????????????????????????????????????????? | | ?????????????????????????????????????????????????? | | ?????????????????????????????????????????????????? | | ?????????????????????????????????????????????????? | | ?????????????????????????????????????????????????? | | ?????????????????????????????????????????????????? | | ?????????????????????????????????????????????????? | | ?????????????????????????????????????????????????? | | ?????????????????????????????????????????????????? | | ?????????????????????????????????????????????????? | | ?????????????????????????????????????????????????? | +----------------------------------------------------+ Best States ------------- Heat Dissipation 38 Energy Generation 12 Energy Capacity 265 Matter Stores 300 Matter Capacity 300 Sight Range 16 Terrain Scan Density 10 Armor Coverage 150 Evasion (%) 55 Targeting Accuracy 6 Item Schematics ----------------- Imp. EM Shotgun | -9/Materials | Scanalyzed Robot Schematics ------------------ None Fabricated ------------ Nothing Alien Tech Used ----------------- None Achievements -------------- None Challenges ------------ None Game ------ Seed GaussNodeMagmablaster Manual? 0 Play Time 00:26:29 Cumulative 339.1 hours Start 2023.11.24 @ 19:55:03 End 2023.11.24 @ 20:27:42 Sessions 1 Manual Loads 0 Difficulty Rogue Special Mode None Game No. 367 Rogue 340 Adventurer 2 Explorer 25 Win Type - Total 20 Types 17/1/0/2/0/0/0/0/0 Lore% 76 Gallery% 83 Achievement% 80 Wizard Run 0 Options --------- ASCII 1 Keyboard 1 Movement Numpad Keybinds 1 Fullscreen 1 Font 18/X11 Map View 76x50 Tactical HUD 1 Map Filters NONE Filters NONE Steam 1 RUN: 595d56c0-009f-4429-8b67-2ccb85131639